fUST/lending_fUST_20241021
["ID","MTS","AMOUNT","RATE_DAILY","PERIOD"]
[340569187,1729502869284,-1038.73,0.00016712,2]
[340569188,1729502869307,-651.5,0.00016712,2]
[340569189,1729502869329,-500.0,0.00016712,2]
[340569190,1729502869352,-500.0,0.00016712,2]
[340569191,1729502869375,-918.52,0.00016712,2]
[340569192,1729502869399,-500.0,0.00016712,2]
[340569193,1729502869424,-500.0,0.00016712,2]
[340569194,1729502869446,-500.0,0.00016712,2]
[340569195,1729502869468,-500.0,0.00016712,2]
[340569196,1729502869491,-500.0,0.00016712,2]
[340569197,1729502869513,-500.0,0.00016712,2]
[340569198,1729502869537,-500.0,0.00016712,2]
[340569199,1729502869560,-500.0,0.00016712,2]
[340569200,1729502869583,-500.0,0.00016712,2]
[340569201,1729502869607,-500.0,0.00016712,2]
[340569202,1729502869630,-1590.63,0.00016712,2]
[340569203,1729502869654,-500.0,0.00016712,2]
[340569204,1729502869682,-500.0,0.00016712,2]
[340569205,1729502869706,-500.0,0.00016712,2]
[340569206,1729502869729,-1571.14,0.00016712,2]
[340569207,1729502869752,-500.0,0.00016712,2]
[340569208,1729502869774,-204.64413753,0.00016712,2]
[340569209,1729502869796,-500.0,0.00016712,2]
[340569210,1729502869819,-500.0,0.00016712,2]
[340569211,1729502869841,-564.86963913,0.00016712,2]
[340569212,1729502869863,-500.0,0.00016712,2]
[340569213,1729502869885,-500.0,0.00016712,2]
[340569214,1729502869906,-500.0,0.00016712,2]
[340569215,1729502869930,-500.0,0.00016712,2]
[340569216,1729502869953,-500.0,0.00016712,2]
[340569217,1729502869975,-2255.98,0.00016712,2]
[340569218,1729502869997,-500.0,0.00016712,2]
[340569219,1729502870019,-1376.51,0.00016712,2]
[340569220,1729502870041,-500.0,0.00016712,2]
[340569221,1729502870061,-500.0,0.00016712,2]
[340569222,1729502870083,-500.0,0.00016712,2]
[340569223,1729502870106,-500.0,0.00016712,2]
[340569224,1729502870127,-1047.11,0.00016712,2]
[340569225,1729502870152,-500.0,0.00016712,2]
[340569226,1729502870176,-1525.69,0.00016712,2]
[340569227,1729502870197,-500.0,0.00016712,2]
[340569228,1729502870221,-500.0,0.00016712,2]
[340569229,1729502870243,-500.0,0.00016712,2]
[340569230,1729502870265,-500.0,0.00016712,2]
[340569231,1729502870285,-500.0,0.00016712,2]
[340569232,1729502870308,-500.0,0.00016712,2]
[340569233,1729502870329,-500.0,0.00016712,2]
[340569234,1729502870350,-500.0,0.00016712,2]
[340569235,1729502870371,-500.0,0.00016712,2]
[340569236,1729502870393,-799.62,0.00016712,2]
[340569237,1729502870415,-500.0,0.00016712,2]
[340569238,1729502870437,-500.0,0.00016712,2]
[340569239,1729502870460,-500.0,0.00016712,2]
[340569240,1729502870481,-500.0,0.00016712,2]
[340569241,1729502870502,-500.0,0.00016712,2]
[340569242,1729502870524,-500.0,0.00016712,2]
[340569243,1729502870546,-500.0,0.00016712,2]
[340569244,1729502870568,-1706.82,0.00016712,2]
[340569245,1729502870594,-500.0,0.00016712,2]
[340569246,1729502870615,-500.0,0.00016712,2]
[340569247,1729502870637,-500.0,0.00016712,2]
[340569248,1729502870660,-500.0,0.00016712,2]
[340569249,1729502870683,-558.86,0.00016712,2]
[340569250,1729502870714,-500.0,0.00016712,2]
[340569251,1729502870736,-500.0,0.00016712,2]
[340569252,1729502870758,-500.0,0.00016712,2]
[340569253,1729502870779,-500.0,0.00016712,2]
[340569254,1729502870801,-500.0,0.00016712,2]
[340569255,1729502870822,-500.0,0.00016712,2]
[340569256,1729502870844,-500.0,0.00016712,2]
[340569257,1729502870866,-519.06674851,0.00016712,2]
[340569258,1729502870887,-1759.64,0.00016712,2]
[340569259,1729502870908,-500.0,0.00016712,2]
[340569260,1729502870931,-500.0,0.00016712,2]
[340569261,1729502870954,-500.0,0.00016712,2]
[340569262,1729502870977,-500.0,0.00016712,2]
[340569263,1729502870999,-1121.25,0.00016712,2]
[340569264,1729502871022,-500.0,0.00016712,2]
[340569265,1729502871046,-500.0,0.00016712,2]
[340569266,1729502871068,-500.0,0.00016712,2]
[340569267,1729502871090,-500.0,0.00016712,2]
[340569268,1729502871113,-500.0,0.00016712,2]
[340569269,1729502871137,-500.0,0.00016712,2]
[340569270,1729502871158,-500.0,0.00016712,2]
[340569271,1729502871183,-500.0,0.00016712,2]
[340569272,1729502871204,-500.0,0.00016712,2]
[340569273,1729502871227,-500.0,0.00016712,2]
[340569274,1729502871248,-500.0,0.00016712,2]
[340569275,1729502871269,-500.0,0.00016712,2]
[340569276,1729502871291,-221.97215194,0.00016712,2]
[340569277,1729502871313,-500.0,0.00016712,2]
[340569278,1729502871335,-500.0,0.00016712,2]
[340569279,1729502871356,-500.0,0.00016712,2]
[340569280,1729502871377,-500.0,0.00016712,2]
[340569281,1729502871399,-1113.79,0.00016712,2]
[340569282,1729502871422,-701.95,0.00016712,2]
[340569283,1729502871444,-500.0,0.00016712,2]
[340569284,1729502871466,-500.0,0.00016712,2]
[340569285,1729502871489,-500.0,0.00016712,2]
[340569286,1729502871677,-512.06,0.00016712,2]
[340569287,1729502871733,-1614.97,0.00016712,2]
[340569288,1729502871754,-500.0,0.00016712,2]
[340569289,1729502871775,-500.0,0.00016712,2]
[340569290,1729502871796,-689.37,0.00016712,2]
[340569291,1729502871817,-500.0,0.00016712,2]
[340569292,1729502871838,-500.0,0.00016712,2]
[340569293,1729502871859,-500.0,0.00016712,2]
[340569294,1729502871879,-500.0,0.00016712,2]
[340569295,1729502871900,-1136.19,0.00016712,2]
[340569296,1729502871922,-500.0,0.00016712,2]
[340569297,1729502871944,-917.71,0.00016712,2]
[340569298,1729502871971,-599.17,0.00016712,2]
[340569299,1729502871993,-1142.54,0.00016712,2]
[340569300,1729502872015,-500.0,0.00016712,2]
[340569301,1729502872036,-500.0,0.00016712,2]
[340569302,1729502872057,-500.0,0.00016712,2]
[340569303,1729502872079,-924.45,0.00016712,2]
[340569304,1729502872100,-818.17,0.00016712,2]
[340569305,1729502872121,-638.01,0.00016712,2]
[340569306,1729502872146,-500.0,0.00016712,2]
[340569307,1729502872168,-517.8408412,0.00016712,2]
[340569308,1729502872193,-500.0,0.00016712,2]
[340569309,1729502872216,-346.15291495,0.00016712,2]
[340569310,1729502872238,-500.0,0.00016712,2]
[340569311,1729502872259,-467.69075596,0.00016712,2]
[340569312,1729502872791,-32.30924404,0.00016712,2]
[340569313,1729502872813,-500.0,0.00016712,2]
[340569314,1729502872832,-1644.51,0.00016712,2]
[340569315,1729502872851,-500.0,0.00016712,2]
[340569316,1729502872871,-516.27906594,0.00016712,2]
[340569317,1729502872892,-500.0,0.00016712,2]
[340569318,1729502872911,-1953.9,0.00016712,2]
[340569319,1729502872934,-500.0,0.00016712,2]
[340569320,1729502872955,-500.0,0.00016712,2]
[340569321,1729502872975,-500.0,0.00016712,2]
[340569322,1729502872995,-500.0,0.00016712,2]
[340569323,1729502873015,-528.80971964,0.00016712,2]
[340569324,1729502873035,-500.0,0.00016712,2]
[340569325,1729502873055,-2553.31,0.00016712,2]
[340569326,1729502873076,-500.0,0.00016712,2]
[340569327,1729502873096,-500.0,0.00016712,2]
[340569328,1729502873116,-500.0,0.00016712,2]
[340569329,1729502873139,-692.71,0.00016712,2]
[340569330,1729502873159,-500.0,0.00016712,2]
[340569331,1729502873181,-187.24454827,0.00016712,2]
[340569332,1729502873201,-1178.62,0.00016712,2]
[340569333,1729502873225,-500.0,0.00016712,2]
[340569334,1729502873246,-500.0,0.00016712,2]
[340569335,1729502873266,-500.0,0.00016712,2]
[340569336,1729502873294,-500.0,0.00016712,2]
[340569337,1729502873315,-306.34675765,0.00016712,2]
[340569338,1729502873335,-500.0,0.00016712,2]
[340569339,1729502873356,-500.0,0.00016712,2]
[340569340,1729502873377,-500.0,0.00016712,2]
[340569341,1729502873399,-706.37,0.00016712,2]
[340569342,1729502873422,-1622.67,0.00016712,2]
[340569343,1729502873442,-1003.14,0.00016712,2]
[340569344,1729502873464,-2820.41,0.00016712,2]
[340569345,1729502873484,-500.0,0.00016712,2]
[340569346,1729502873504,-988.91,0.00016712,2]
[340569347,1729502873524,-500.0,0.00016712,2]
[340569348,1729502873544,-1135.22,0.00016712,2]
[340569349,1729502873564,-500.0,0.00016712,2]
[340569350,1729502873584,-588.78,0.00016712,2]
[340569351,1729502873604,-589.52111415,0.00016712,2]
[340569352,1729502873625,-536.23078069,0.00016712,2]
[340569353,1729502873645,-500.0,0.00016712,2]
[340569354,1729502873666,-500.0,0.00016712,2]
[340569355,1729502873684,-500.0,0.00016712,2]
[340569356,1729502873704,-451.27156167,0.00016712,2]
[340569357,1729502873724,-1012.48,0.00016712,2]
[340569358,1729502873743,-512.34390598,0.00016712,2]
[340569359,1729502873763,-500.0,0.00016712,2]
[340569360,1729502873783,-500.0,0.00016712,2]
[340569361,1729502873802,-500.0,0.00016712,2]
[340569362,1729502873823,-1144.94,0.00016712,2]
[340569363,1729502873843,-500.0,0.00016712,2]
[340569364,1729502873862,-500.0,0.00016712,2]
[340569365,1729502873882,-500.0,0.00016712,2]
[340569366,1729502873901,-500.0,0.00016712,2]
[340569367,1729502873923,-500.0,0.00016712,2]
[340569368,1729502873943,-500.0,0.00016712,2]
[340569369,1729502873965,-500.0,0.00016712,2]
[340569370,1729502873986,-500.0,0.00016712,2]
[340569371,1729502874006,-500.0,0.00016712,2]
[340569372,1729502874026,-1243.58,0.00016712,2]
[340569373,1729502874046,-578.71219577,0.00016712,2]
[340569374,1729502874066,-910.93,0.00016712,2]
[340569375,1729502874087,-2795.23,0.00016712,2]
[340569376,1729502874107,-2377.18,0.00016712,2]
[340569377,1729502874126,-751.96,0.00016712,2]
[340569378,1729502874150,-458.98832943,0.00016712,2]
[340569379,1729502874171,-495.74932171,0.00016712,2]
[340569380,1729502874190,-500.0,0.00016712,2]
[340569381,1729502874211,-500.0,0.00016712,2]
[340569382,1729502874231,-588.74,0.00016712,2]
[340569383,1729502874250,-544.0592777,0.00016712,2]
[340569384,1729502874270,-500.0,0.00016712,2]
[340569385,1729502874289,-2470.74,0.00016712,2]
[340569386,1729502874308,-556.66,0.00016712,2]
[340569387,1729502874328,-500.0,0.00016712,2]
[340569388,1729502874348,-2512.05,0.00016712,2]
[340569389,1729502874368,-500.0,0.00016712,2]
[340569390,1729502874388,-500.0,0.00016712,2]
[340569391,1729502874408,-1229.47,0.00016712,2]
[340569392,1729502874428,-500.0,0.00016712,2]
[340569393,1729502874449,-899.06,0.00016712,2]
[340569394,1729502874469,-941.31,0.00016712,2]
[340569395,1729502874490,-500.0,0.00016712,2]
[340569396,1729502874511,-3632.26,0.00016712,2]
[340569397,1729502874532,-500.0,0.00016712,2]
[340569398,1729502874552,-500.0,0.00016712,2]
[340569399,1729502874572,-1300.28,0.00016712,2]
[340569400,1729502874593,-500.0,0.00016712,2]
[340569401,1729502874614,-500.0,0.00016712,2]
[340569402,1729502874634,-500.0,0.00016712,2]
[340569403,1729502874654,-1876.19,0.00016712,2]
[340569404,1729502874674,-343.89895922,0.00016712,2]
[340569405,1729502874694,-1493.45,0.00016712,2]
[340569406,1729502874714,-500.0,0.00016712,2]
[340569407,1729502874734,-500.0,0.00016712,2]
[340569408,1729502874754,-1315.46,0.00016712,2]
[340569409,1729502874774,-500.0,0.00016712,2]
[340569410,1729502874793,-500.0,0.00016712,2]
[340569411,1729502874813,-2876.62,0.00016712,2]
[340569412,1729502874833,-500.0,0.00016712,2]
[340569413,1729502874852,-1280.87,0.00016712,2]
[340569414,1729502874873,-500.0,0.00016712,2]
[340569415,1729502874893,-1972.29,0.00016712,2]
[340569416,1729502874914,-1179.29,0.00016712,2]
[340569417,1729502874935,-773.69,0.00016712,2]
[340569418,1729502875176,-500.0,0.00016712,2]
[340569419,1729502875198,-500.0,0.00016712,2]
[340569420,1729502875220,-500.0,0.00016712,2]
[340569421,1729502875240,-500.0,0.00016712,2]
[340569422,1729502875260,-500.0,0.00016712,2]
[340569423,1729502875280,-500.0,0.00016712,2]
[340569424,1729502875300,-500.0,0.00016712,2]
[340569425,1729502875321,-2165.07,0.00016712,2]
[340569426,1729502875342,-2319.63,0.00016712,2]
[340569427,1729502875362,-500.0,0.00016712,2]
[340569428,1729502875383,-500.0,0.00016712,2]
[340569429,1729502875404,-500.0,0.00016712,2]
[340569430,1729502875425,-500.0,0.00016712,2]
[340569431,1729502875445,-500.0,0.00016712,2]
[340569432,1729502875465,-709.56,0.00016712,2]
[340569433,1729502875485,-481.39004029,0.00016712,2]
[340569434,1729502875505,-807.19,0.00016712,2]
[340569435,1729502875525,-500.0,0.00016712,2]
[340569436,1729502875547,-1685.8,0.00016712,2]
[340569437,1729502875567,-500.0,0.00016712,2]
[340569438,1729502875586,-500.0,0.00016712,2]
[340569439,1729502875606,-1258.79,0.00016712,2]
[340569440,1729502875626,-637.77422423,0.00016712,2]
[340569441,1729502875647,-500.0,0.00016712,2]
[340569442,1729502875667,-482.16288979,0.00016712,2]
[340569443,1729502875687,-500.0,0.00016712,2]
[340569444,1729502875707,-422.89110483,0.00016712,2]
[340569445,1729502876028,-225.86655221,0.00016438,2]
[340569446,1729502876051,-2708.92576176,0.00016438,2]
[340569447,1729502876071,-77.10889517,0.00016712,2]
[340569448,1729502876090,-500.0,0.00016712,2]
[340569449,1729502876110,-500.0,0.00016712,2]
[340569450,1729502876132,-500.0,0.00016712,2]
[340569451,1729502876154,-500.0,0.00016712,2]
[340569452,1729502876175,-500.0,0.00016712,2]
[340569453,1729502876194,-632.43,0.00016712,2]
[340569454,1729502876214,-500.0,0.00016712,2]
[340569455,1729502876235,-792.58,0.00016712,2]
[340569456,1729502876254,-876.42,0.00016712,2]
[340569457,1729502876274,-500.0,0.00016712,2]
[340569458,1729502876293,-500.0,0.00016712,2]
[340569459,1729502876312,-500.0,0.00016712,2]
[340569460,1729502876331,-500.0,0.00016712,2]
[340569461,1729502876351,-500.0,0.00016712,2]
[340569462,1729502876371,-994.2,0.00016712,2]
[340569463,1729502876391,-2226.56,0.00016712,2]
[340569464,1729502876411,-500.0,0.00016712,2]
[340569465,1729502876432,-516.5148984,0.00016712,2]
[340569466,1729502876452,-500.0,0.00016712,2]
[340569467,1729502876471,-500.0,0.00016712,2]
[340569468,1729502876491,-528.12,0.00016712,2]
[340569469,1729502876511,-500.0,0.00016712,2]
[340569470,1729502876532,-1037.32,0.00016712,2]
[340569471,1729502876552,-533.16492035,0.00016712,2]
[340569472,1729502876572,-2364.63,0.00016712,2]
[340569473,1729502876598,-266.43371449,0.00016712,2]
[340569474,1729502876618,-898.58,0.00016712,2]
[340569475,1729502876638,-500.0,0.00016712,2]
[340569476,1729502876658,-500.0,0.00016712,2]
[340569477,1729502876680,-1236.98,0.00016712,2]
[340569478,1729502876699,-500.0,0.00016712,2]
[340569479,1729502876719,-2153.43,0.00016712,2]
[340569480,1729502876739,-500.0,0.00016712,2]
[340569481,1729502876758,-1576.2,0.00016712,2]
[340569482,1729502876777,-500.0,0.00016712,2]
[340569483,1729502876797,-500.0,0.00016712,2]
[340569484,1729502876816,-1139.94,0.00016712,2]
[340569485,1729502876836,-500.0,0.00016712,2]
[340569486,1729502876856,-542.05837688,0.00016712,2]
[340569487,1729502876876,-500.0,0.00016712,2]
[340569488,1729502876895,-500.0,0.00016712,2]
[340569489,1729502876916,-500.0,0.00016712,2]
[340569490,1729502876935,-500.0,0.00016712,2]
[340569491,1729502876957,-500.0,0.00016712,2]
[340569492,1729502876977,-3174.3,0.00016712,2]
[340569493,1729502876997,-500.0,0.00016712,2]
[340569494,1729502877016,-500.0,0.00016712,2]
[340569495,1729502877036,-2084.54,0.00016712,2]
[340569496,1729502877056,-500.0,0.00016712,2]
[340569497,1729502877075,-500.0,0.00016712,2]
[340569498,1729502877094,-571.14,0.00016712,2]
[340569499,1729502877114,-202.83670557,0.00016712,2]
[340569500,1729502877137,-500.0,0.00016712,2]
[340569501,1729502877156,-563.76274077,0.00016712,2]
[340569502,1729502877177,-500.0,0.00016712,2]
[340569503,1729502877197,-500.0,0.00016712,2]
[340569504,1729502877219,-464.31363898,0.00016712,2]
[340569505,1729502877239,-1539.13,0.00016712,2]
[340569506,1729502877259,-500.0,0.00016712,2]
[340569507,1729502877278,-500.0,0.00016712,2]
[340569508,1729502877298,-1803.76,0.00016712,2]
[340569509,1729502877318,-327.98338176,0.00016712,2]
[340569510,1729502877338,-1045.63,0.00016712,2]
[340569511,1729502877358,-578.30073144,0.00016712,2]
[340569512,1729502877378,-354.22677469,0.00016712,2]
[340569513,1729502877398,-1427.25,0.00016712,2]
[340569514,1729502877418,-2632.25,0.00016712,2]
[340569515,1729502877439,-1169.07,0.00016712,2]
[340569516,1729502877459,-1070.14,0.00016712,2]
[340569517,1729502877479,-500.0,0.00016712,2]
[340569518,1729502877499,-500.0,0.00016712,2]
[340569519,1729502877519,-500.0,0.00016712,2]
[340569520,1729502877538,-500.0,0.00016712,2]
[340569521,1729502877558,-500.0,0.00016712,2]
[340569522,1729502877578,-500.0,0.00016712,2]
[340569523,1729502877597,-1196.13,0.00016712,2]
[340569524,1729502877617,-500.0,0.00016712,2]
[340569525,1729502877636,-500.0,0.00016712,2]
[340569526,1729502877656,-991.03,0.00016712,2]
[340569527,1729502877676,-500.0,0.00016712,2]
[340569528,1729502877696,-500.0,0.00016712,2]
[340569529,1729502877715,-2706.54,0.00016712,2]
[340569530,1729502877735,-182.76197951,0.00016712,2]
[340569547,1729502920712,18803.46474308,0.0001,2]
[340569587,1729503032387,-1000.0,0.0001443,2]
[340569588,1729503032398,-7107.476392,0.00015756,2]
[340569590,1729503032411,-1065.5936682,0.00015756,2]
[340569593,1729503032421,-436.13689197,0.00016338,2]
[340569596,1729503032432,-500.0,0.00016438,2]
[340569599,1729503032441,-500.0,0.00016438,2]
[340569602,1729503032451,-824.50121963,0.00016438,2]
[340569608,1729503038395,-546.05878037,0.00016438,2]
[340569610,1729503038405,-500.0,0.00016438,2]
[340569611,1729503038414,-500.0,0.00016438,2]
[340569612,1729503038424,-1369.0,0.00016438,2]
[340569613,1729503038433,-500.0,0.00016438,2]
[340569614,1729503038443,-2.56121963,0.00016438,2]
[340569615,1729503038650,-332.598,0.00016438,2]
[340569625,1729503039366,-1667.45078037,0.00016438,2]
[340569626,1729503039375,-500.0,0.00016438,2]
[340569627,1729503039385,-500.0,0.00016438,2]
[340569628,1729503039395,-906.5,0.00016438,2]
[340569629,1729503039405,-500.0,0.00016438,2]
[340569630,1729503039415,-971.96,0.00016438,2]
[340569631,1729503039425,-500.0,0.00016438,2]
[340569632,1729503039435,-1800.07,0.00016438,2]
[340569633,1729503039444,-1428.08860519,0.00016438,2]
[340569647,1729503048659,-166.40139481,0.00016438,2]
[340569648,1729503048669,-687.91,0.00016438,2]
[340569649,1729503048679,-500.0,0.00016438,2]
[340569650,1729503048690,-500.0,0.00016438,2]
[340569651,1729503048700,-500.0,0.00016438,2]
[340569652,1729503048710,-516.19,0.00016438,2]
[340569653,1729503048720,-500.0,0.00016438,2]
[340569654,1729503048729,-500.0,0.00016438,2]
[340569655,1729503048740,-8929.29,0.00016438,2]
[340569656,1729503048749,-500.0,0.00016438,2]
[340569657,1729503048760,-1049.53,0.00016438,2]
[340569658,1729503048770,-500.0,0.00016438,2]
[340569659,1729503048780,-1313.75,0.00016438,2]
[340569660,1729503048790,-683.57,0.00016438,2]
[340569661,1729503048800,-13797.46,0.00016438,2]
[340569662,1729503048810,-1545.31,0.00016438,2]
[340569663,1729503048820,-500.0,0.00016438,2]
[340569664,1729503048830,-1500.29,0.00016438,2]
[340569665,1729503048840,-500.0,0.00016438,2]
[340569666,1729503048850,-500.0,0.00016438,2]
[340569667,1729503048861,-500.0,0.00016438,2]
[340569668,1729503048871,-500.0,0.00016438,2]
[340569669,1729503048881,-689.3,0.00016438,2]
[340569670,1729503048891,-500.0,0.00016438,2]
[340569671,1729503048901,-500.0,0.00016438,2]
[340569672,1729503048912,-1936.64,0.00016438,2]
[340569673,1729503048922,-1006.26,0.00016438,2]
[340569674,1729503048932,-745.3,0.00016438,2]
[340569675,1729503048942,-841.98,0.00016438,2]
[340569676,1729503048952,-1709.37,0.00016438,2]
[340569677,1729503048962,-500.0,0.00016438,2]
[340569678,1729503048972,-500.0,0.00016438,2]
[340569679,1729503048982,-866.95,0.00016438,2]
[340569680,1729503048992,-500.0,0.00016438,2]
[340569681,1729503049003,-500.0,0.00016438,2]
[340569682,1729503049014,-500.0,0.00016438,2]
[340569683,1729503049024,-732.71,0.00016438,2]
[340569684,1729503049034,-2307.79,0.00016438,2]
[340569685,1729503049044,-500.0,0.00016438,2]
[340569686,1729503049054,-6012.07,0.00016438,2]
[340569687,1729503049065,-500.0,0.00016438,2]
[340569688,1729503049076,-1407.19,0.00016438,2]
[340569689,1729503049086,-500.0,0.00016438,2]
[340569690,1729503049096,-5021.35,0.00016438,2]
[340569691,1729503049106,-617.51,0.00016438,2]
[340569692,1729503049115,-500.0,0.00016438,2]
[340569693,1729503049126,-895.95,0.00016438,2]
[340569694,1729503049136,-500.0,0.00016438,2]
[340569695,1729503049146,-1973.98,0.00016438,2]
[340569696,1729503049156,-2082.3,0.00016438,2]
[340569697,1729503049166,-1163.08,0.00016438,2]
[340569698,1729503049179,-2369.27,0.00016438,2]
[340569699,1729503049189,-500.0,0.00016438,2]
[340569700,1729503049199,-1412.76,0.00016438,2]
[340569701,1729503049209,-500.0,0.00016438,2]
[340569702,1729503049219,-952.16,0.00016438,2]
[340569703,1729503049230,-1414.82,0.00016438,2]
[340569704,1729503049240,-1414.49,0.00016438,2]
[340569705,1729503049250,-500.0,0.00016438,2]
[340569706,1729503049261,-500.0,0.00016438,2]
[340569707,1729503049272,-1773.47,0.00016438,2]
[340569708,1729503049283,-779.6,0.00016438,2]
[340569709,1729503049293,-500.0,0.00016438,2]
[340569710,1729503049304,-2909.78,0.00016438,2]
[340569711,1729503049314,-151.76648317,0.00016438,2]
[340569712,1729503049325,-500.0,0.00016438,2]
[340569713,1729503049335,-500.0,0.00016438,2]
[340569714,1729503049350,-500.0,0.00016438,2]
[340569715,1729503049365,-3617.06,0.00016438,2]
[340569716,1729503049379,-1444.85,0.00016438,2]
[340569717,1729503049391,-1020.97,0.00016438,2]
[340569718,1729503049402,-1542.86,0.00016438,2]
[340569719,1729503049415,-780.5,0.00016438,2]
[340569720,1729503049428,-1808.93,0.00016438,2]
[340569721,1729503049441,-500.0,0.00016438,2]
[340569722,1729503049454,-2841.12,0.00016438,2]
[340569723,1729503049468,-2398.99,0.00016438,2]
[340569724,1729503049482,-959.85,0.00016438,2]
[340569725,1729503049496,-500.0,0.00016438,2]
[340569726,1729503049509,-500.0,0.00016438,2]
[340569727,1729503049522,-1613.0,0.00016438,2]
[340569728,1729503049535,-1006.63,0.00016438,2]
[340569729,1729503049547,-500.0,0.00016438,2]
[340569730,1729503049560,-500.0,0.00016438,2]
[340569731,1729503049574,-897.98,0.00016438,2]
[340569732,1729503049587,-631.92,0.00016438,2]
[340569733,1729503049599,-1961.2,0.00016438,2]
[340569734,1729503049609,-500.0,0.00016438,2]
[340569735,1729503049620,-145.17795602,0.00016438,2]
[340569736,1729503050099,-354.82204398,0.00016438,2]
[340569737,1729503050111,-727.17,0.00016438,2]
[340569738,1729503050122,-1571.76,0.00016438,2]
[340569739,1729503050134,-500.0,0.00016438,2]
[340569740,1729503050145,-2232.37,0.00016438,2]
[340569741,1729503050156,-549.24,0.00016438,2]
[340569742,1729503050167,-742.56,0.00016438,2]
[340569743,1729503050182,-500.0,0.00016438,2]
[340569744,1729503050194,-273.45561089,0.00016438,2]
[340569745,1729503050205,-1308.32,0.00016438,2]
[340569746,1729503050216,-736.33,0.00016438,2]
[340569747,1729503050228,-11946.49316613,0.00016438,2]
[340569748,1729503050769,-4877.67683387,0.00016438,2]
[340569749,1729503050781,-512.29,0.00016438,2]
[340569750,1729503050792,-734.52,0.00016438,2]
[340569751,1729503050804,-643.45,0.00016438,2]
[340569752,1729503050817,-306.06920862,0.00016438,2]
[340569753,1729503050831,-50302.14,0.00016438,2]
[340569754,1729503050843,-2417.76,0.00016438,2]
[340569755,1729503050855,-500.0,0.00016438,2]
[340569756,1729503050867,-500.0,0.00016438,2]
[340569757,1729503050879,-500.0,0.00016438,2]
[340569758,1729503050890,-500.0,0.00016438,2]
[340569759,1729503050902,-1956.84,0.00016438,2]
[340569760,1729503050913,-500.0,0.00016438,2]
[340569761,1729503050924,-2340.53,0.00016438,2]
[340569762,1729503050935,-404.67113188,0.00016438,2]
[340569763,1729503050945,-2166.31,0.00016438,2]
[340569764,1729503050957,-500.0,0.00016438,2]
[340569765,1729503050967,-8938.61,0.00016438,2]
[340569766,1729503050979,-500.0,0.00016438,2]
[340569767,1729503050989,-545.4160801,0.00016438,2]
[340569768,1729503051001,-586.74,0.00016438,2]
[340569769,1729503051013,-916.12,0.00016438,2]
[340569770,1729503051023,-500.0,0.00016438,2]
[340569771,1729503051035,-500.0,0.00016438,2]
[340569772,1729503051047,-500.0,0.00016438,2]
[340569773,1729503051058,-500.0,0.00016438,2]
[340569774,1729503051069,-958.88,0.00016438,2]
[340569775,1729503051081,-500.0,0.00016438,2]
[340569776,1729503051092,-500.0,0.00016438,2]
[340569777,1729503051102,-1275.84,0.00016438,2]
[340569778,1729503051113,-2169.62,0.00016438,2]